fUST/lending_fUST_20260118
["ID","MTS","AMOUNT","RATE_DAILY","PERIOD"]
[402532875,1768700772960,500.0,0.00012706,2]
[402532878,1768700831840,1500.0,0.0002739,120]
[402532879,1768700837544,500.0,0.00012706,2]
[402532880,1768700878278,2323.75525252,0.00027,120]
[402532886,1768700979650,1265.0,0.00027397,120]
[402532887,1768701001892,1266.0,0.00027397,120]
[402532888,1768701011956,500.0,0.00012704,2]
[402532924,1768701032701,-500.0,0.00012841,2]
[402532926,1768701032710,-827.0444819,0.00012842,10]
[402532928,1768701032720,-188.43677966,0.00012843,2]
[402532930,1768701032731,-311.56322034,0.00012843,2]
[402532932,1768701032740,-500.0,0.00012843,2]
[402532934,1768701032750,-517.82655001,0.00012844,2]
[402532936,1768701032760,-300.0,0.00012844,2]
[402532938,1768701032770,-1200.0,0.00012844,2]
[402532940,1768701032779,-207.8650988,0.00012844,2]
[402532942,1768701032788,-500.0,0.00012845,2]
[402532944,1768701032797,-150.12222879,0.00012845,2]
[402532946,1768701032806,-300.0,0.00012845,2]
[402532948,1768701032815,-8679.24522741,0.00012846,2]
[402532950,1768701032824,-245.33480547,0.00012877,2]
[402532952,1768701032833,-499.13145167,0.00012877,2]
[402532954,1768701032842,-16540.89402565,0.00012878,2]
[402532957,1768701032866,-650.02727789,0.00012878,2]
[402532959,1768701032878,-1331.21619743,0.00012878,2]
[402532962,1768701032889,-388.0785257,0.00012878,2]
[402533017,1768701034577,1265.0,0.00027397,120]
[402533117,1768701039140,-500.0,0.00012877,2]
[402533120,1768701039150,-500.0,0.00012877,2]
[402533122,1768701039160,-500.0,0.00012877,2]
[402533123,1768701039169,-500.0,0.00012877,2]
[402533125,1768701039179,-500.0,0.00012877,2]
[402533127,1768701039189,-500.0,0.00012877,2]
[402533129,1768701039198,-500.0,0.00012877,2]
[402533132,1768701039207,-500.0,0.00012877,2]
[402533134,1768701039217,-500.0,0.00012877,2]
[402533136,1768701039228,-500.0,0.00012877,2]
[402533137,1768701039239,-294.30166892,0.00012877,2]
[402533140,1768701039250,-205.69833108,0.00012877,2]
[402533142,1768701039259,-70.6184114,0.00012877,2]
[402533146,1768701039291,-429.3815886,0.00012877,2]
[402533148,1768701039300,-500.0,0.00012877,2]
[402533150,1768701039311,-500.0,0.00012877,2]
[402533152,1768701039321,-500.0,0.00012877,2]
[402533154,1768701039330,-500.0,0.00012877,2]
[402533156,1768701039339,-500.0,0.00012877,2]
[402533158,1768701039348,-500.0,0.00012877,2]
[402533160,1768701039357,-393.72800804,0.00012877,2]
[402533162,1768701039367,-500.0,0.00012877,2]
[402533164,1768701039376,-395.55040165,0.00012877,2]
[402533166,1768701039385,-500.0,0.00012877,2]
[402533167,1768701039393,-500.0,0.00012877,2]
[402533169,1768701039402,-500.0,0.00012877,2]
[402533171,1768701039412,-500.0,0.00012877,2]
[402533173,1768701039421,-500.0,0.00012877,2]
[402533175,1768701039431,-500.0,0.00012877,2]
[402533177,1768701039440,-500.0,0.00012877,2]
[402533179,1768701039449,-500.0,0.00012877,2]
[402533181,1768701039459,-500.0,0.00012877,2]
[402533183,1768701039468,-263.48044147,0.00012877,2]
[402533185,1768701039478,-500.0,0.00012877,2]
[402533187,1768701039487,-500.0,0.00012877,2]
[402533189,1768701039496,-500.0,0.00012877,2]
[402533191,1768701039505,-500.0,0.00012877,2]
[402533193,1768701039514,-500.0,0.00012877,2]
[402533195,1768701039523,-500.0,0.00012877,2]
[402533197,1768701039533,-500.0,0.00012877,2]
[402533199,1768701039543,-500.0,0.00012877,2]
[402533201,1768701039551,-400.11987895,0.00012877,2]
[402533203,1768701039561,-500.0,0.00012877,2]
[402533205,1768701039571,-500.0,0.00012877,2]
[402533206,1768701039579,-500.0,0.00012877,2]
[402533207,1768701039588,-500.0,0.00012877,2]
[402533208,1768701039597,-981089.78397333,0.00012878,2]
[402533209,1768701039606,-169.171,0.000129,2]
[402533210,1768701039614,-2694.401165,0.000129,2]
[402533211,1768701039623,-500.0,0.00012978,2]
[402533212,1768701039632,-201.97389072,0.00012978,2]
[402533213,1768701039640,-200.99312,0.00012978,2]
[402533214,1768701039649,-203.13520814,0.00012978,2]
[402533215,1768701039658,-200.52096792,0.00012978,2]
[402533216,1768701039667,-500.0,0.0001298,2]
[402533217,1768701039675,-325.9622963,0.0001298,2]
[402533218,1768701039684,-166.98218127,0.0001298,2]
[402533219,1768701039694,-500.0,0.00012982,2]
[402533220,1768701039703,-181.057,0.00012983,2]
[402533221,1768701039711,-500.0,0.00012983,2]
[402533222,1768701039720,-151.0,0.00013,2]
[402533223,1768701039729,-151.0,0.00013,2]
[402533224,1768701039738,-151.0,0.00013,2]
[402533225,1768701039748,-500.0,0.00013115,2]
[402533226,1768701039758,-500.0,0.00013117,2]
[402533227,1768701039767,-500.0,0.00013119,2]
[402533228,1768701039776,-181.79530277,0.00013119,2]
[402533229,1768701039785,-172.17092249,0.00013119,2]
[402533230,1768701039794,-500.0,0.00013252,2]
[402533231,1768701039804,-200.65453284,0.00013252,2]
[402533232,1768701039812,-500.0,0.00013254,2]
[402533233,1768701039822,-172.07,0.00013254,2]
[402533234,1768701039831,-253.9398322,0.00013256,2]
[402533235,1768701039840,-296.7637983,0.00013256,2]
[402533237,1768701039849,-500.0,0.00013257,2]
[402533240,1768701039861,-283.75902464,0.00013273,2]
[402533242,1768701039871,-500.34672568,0.00013273,2]
[402533243,1768701039881,-501.2010432,0.00013273,2]
[402533245,1768701039891,-501.01710813,0.00013273,2]
[402533248,1768701039900,-500.44298531,0.00013273,2]
[402533249,1768701039910,-500.4637451,0.00013273,2]
[402533252,1768701039919,-500.43367751,0.00013273,2]
[402533254,1768701039929,-500.0,0.00013273,2]
[402533256,1768701039938,-548.50329169,0.00013273,2]
[402533258,1768701039948,-500.0,0.00013273,2]
[402533260,1768701039957,-500.55981501,0.00013273,2]
[402533261,1768701039967,-500.0,0.00013273,2]
[402533263,1768701039976,-264.56590406,0.00013273,2]
[402533266,1768701039986,-298.50294676,0.00013273,2]
[402533267,1768701039995,-500.57751035,0.00013273,2]
[402533270,1768701040005,-500.7897326,0.00013273,2]
[402533271,1768701040014,-503.50082024,0.00013273,2]
[402533273,1768701040023,-217.3576919,0.00013273,2]
[402533276,1768701040033,-336.65181429,0.00013273,2]
[402533278,1768701040042,-501.77534769,0.00013273,2]
[402533280,1768701040051,-500.0,0.00013273,2]
[402533282,1768701040061,-500.0,0.00013273,2]
[402533284,1768701040070,-500.60429846,0.00013273,2]
[402533285,1768701040079,-218.24011697,0.00013273,2]
[402533287,1768701040089,-500.63543158,0.00013273,2]
[402533290,1768701040100,-500.29931449,0.00013273,2]
[402533293,1768701040110,-165.76233059,0.00013273,2]
[402533296,1768701040119,-163.19766318,0.00013273,2]
[402533298,1768701040128,-503.07698947,0.00013273,2]
[402533299,1768701040137,-501.83139484,0.00013273,2]
[402533302,1768701040147,-500.0,0.00013273,2]
[402533304,1768701040156,-500.45071296,0.00013273,2]
[402533305,1768701040166,-304.96865793,0.00013273,2]
[402533307,1768701040175,-500.0,0.00013273,2]
[402533309,1768701040185,-500.67704937,0.00013273,2]
[402533311,1768701040195,-500.0,0.00013273,2]
[402533314,1768701040205,-500.0,0.00013273,2]
[402533316,1768701040214,-500.0,0.00013273,2]
[402533317,1768701040224,-156.49952399,0.00013273,2]
[402533320,1768701040235,-171.83622886,0.00013273,2]
[402533321,1768701040245,-500.56446511,0.00013273,2]
[402533324,1768701040254,-1845.25765985,0.00013321,2]
[402533326,1768701040265,-500.0,0.00013389,2]
[402533328,1768701040274,-513.77252243,0.00013391,2]
[402533330,1768701040283,-500.0,0.00013526,2]
[402533332,1768701040292,-503.781315,0.00013531,2]
[402533333,1768701040301,-500.0,0.00013663,2]
[402533336,1768701040310,-300.0,0.00013673,2]
[402533338,1768701040320,-500.13675319,0.00013698,2]
[402533339,1768701040329,-1125.91,0.00013698,2]
[402533342,1768701040338,-1125.91,0.00013698,2]
[402533343,1768701040347,-1125.91,0.00013698,2]
[402533345,1768701040356,-1125.91,0.00013698,2]
[402533347,1768701040366,-1125.91,0.00013698,2]
[402533349,1768701040375,-1125.91,0.00013698,2]
[402533351,1768701040385,-1125.91,0.00013698,2]
[402533353,1768701040394,-1125.91,0.00013698,2]
[402533355,1768701040403,-1125.91,0.00013698,2]
[402533357,1768701040412,-1125.91,0.00013698,2]
[402533359,1768701040422,-1125.91,0.00013698,2]
[402533361,1768701040431,-1125.91,0.00013698,2]
[402533363,1768701040440,-1125.91,0.00013698,2]
[402533365,1768701040450,-1125.91,0.00013698,2]
[402533367,1768701040459,-1125.91,0.00013698,2]
[402533369,1768701040469,-1125.91,0.00013698,2]
[402533371,1768701040479,-1125.91,0.00013698,2]
[402533373,1768701040487,-1125.91,0.00013698,2]
[402533375,1768701040497,-1125.91,0.00013698,2]
[402533377,1768701040507,-1125.91,0.00013698,2]
[402533379,1768701040516,-1125.91,0.00013698,2]
[402533381,1768701040525,-1125.91,0.00013698,2]
[402533383,1768701040535,-1125.91,0.00013698,2]
[402533385,1768701040543,-1126.00480251,0.00013698,2]
[402533387,1768701040553,-536.33,0.00013698,2]
[402533388,1768701040562,-536.33,0.00013698,2]
[402533390,1768701040571,-536.33,0.00013698,2]
[402533392,1768701040580,-536.33,0.00013698,2]
[402533394,1768701040590,-536.33,0.00013698,2]
[402533396,1768701040599,-536.33,0.00013698,2]
[402533398,1768701040607,-536.33,0.00013698,2]
[402533400,1768701040616,-536.33,0.00013698,2]
[402533402,1768701040625,-536.33,0.00013698,2]
[402533404,1768701040635,-536.33,0.00013698,2]
[402533406,1768701040644,-536.33,0.00013698,2]
[402533408,1768701040655,-536.33,0.00013698,2]
[402533410,1768701040664,-536.33,0.00013698,2]
[402533412,1768701040674,-536.33,0.00013698,2]
[402533414,1768701040683,-536.33,0.00013698,2]
[402533416,1768701040692,-536.33,0.00013698,2]
[402533418,1768701040701,-536.33,0.00013698,2]
[402533420,1768701040711,-536.33,0.00013698,2]
[402533422,1768701040720,-536.33,0.00013698,2]
[402533424,1768701040729,-536.33,0.00013698,2]
[402533426,1768701040739,-536.33,0.00013698,2]
[402533428,1768701040748,-536.33,0.00013698,2]
[402533430,1768701040759,-536.33,0.00013698,2]
[402533432,1768701040768,-617.72,0.00013698,2]
[402533434,1768701040777,-617.72,0.00013698,2]
[402533437,1768701040796,-617.72,0.00013698,2]
[402533439,1768701040806,-617.72,0.00013698,2]
[402533441,1768701040816,-617.72,0.00013698,2]
[402533443,1768701040825,-617.72,0.00013698,2]
[402533445,1768701040835,-617.72,0.00013698,2]
[402533447,1768701040844,-617.72,0.00013698,2]
[402533449,1768701040854,-617.72,0.00013698,2]
[402533451,1768701040863,-617.72,0.00013698,2]
[402533453,1768701040873,-536.54867369,0.00013698,2]
[402533455,1768701040882,-617.72,0.00013698,2]
[402533457,1768701040892,-617.72,0.00013698,2]
[402533459,1768701040902,-617.72,0.00013698,2]
[402533461,1768701040912,-617.72,0.00013698,2]
[402533463,1768701040920,-617.72,0.00013698,2]
[402533465,1768701040930,-617.72,0.00013698,2]
[402533467,1768701040940,-617.72,0.00013698,2]
[402533469,1768701040950,-617.72,0.00013698,2]
[402533471,1768701040959,-617.72,0.00013698,2]
[402533473,1768701040969,-617.72,0.00013698,2]
[402533475,1768701040979,-617.72,0.00013698,2]
[402533477,1768701040989,-617.72,0.00013698,2]
[402533479,1768701040999,-617.72,0.00013698,2]
[402533481,1768701041008,-617.8232292,0.00013698,2]
[402533483,1768701041018,-150.16515558,0.00013699,2]
[402533485,1768701041028,-500.0,0.00013699,2]
[402533487,1768701041038,-500.0,0.00013699,2]
[402533489,1768701041048,-312.88583579,0.00013699,2]
[402533491,1768701041057,-500.0,0.00013699,2]
[402533493,1768701041067,-500.0,0.00013699,2]
[402533495,1768701041076,-500.0,0.00013699,2]
[402533497,1768701041086,-500.0,0.00013699,2]
[402533498,1768701041096,-2694.40116499,0.0001376,2]
[402533500,1768701041105,-500.0,0.000138,2]
[402533502,1768701041115,-505.21362337,0.00013821,2]
[402533504,1768701041124,-1000.0,0.00013821,2]
[402533506,1768701041134,-507.1749101,0.00013821,2]
[402533508,1768701041144,-504.79086485,0.00013821,2]
[402533510,1768701041155,-504.88964831,0.00013821,2]
[402533512,1768701041165,-501.15994989,0.00013821,2]
[402533515,1768701041175,-501.10173407,0.00013821,2]
[402533516,1768701041184,-1000.0,0.00013821,2]
[402533518,1768701041194,-510.18517799,0.00013821,2]
[402533520,1768701041204,-500.0,0.00013937,2]
[402533522,1768701041213,-500.0,0.00014,2]
[402533524,1768701041223,-100000.0,0.00014006,2]
[402533527,1768701041242,-500.0,0.00014074,2]
[402533529,1768701041252,-200.75,0.00014083,2]
[402533530,1768701041262,-420.0,0.00014089,2]
[402533533,1768701041273,-600.0,0.00014121,2]
[402533535,1768701041282,-211.85,0.00014121,2]
[402533537,1768701041291,-211.84,0.00014121,2]
[402533539,1768701041305,-1680.0,0.00014128,2]
[402533541,1768701041318,-292.21608422,0.00014211,2]
[402533543,1768701041328,-600.0,0.00014221,2]
[402533545,1768701041338,-1000.0,0.00014247,2]
[402533547,1768701041348,-584.51251206,0.00014247,2]
[402533549,1768701041357,-207.45361348,0.00014247,2]
[402533551,1768701041367,-1000.0,0.00014247,2]
[402533553,1768701041376,-192.39794037,0.00014247,2]
[402533555,1768701041385,-1000.0,0.00014247,2]
[402533557,1768701041395,-155.0,0.00014281,2]
[402533559,1768701041405,-1187.95123198,0.00014368,2]
[402533561,1768701041414,-1500.0,0.00014368,2]
[402533563,1768701041424,-2694.40116499,0.00014619,2]
[402533565,1768701041434,-308.15172135,0.00014768,2]
[402533567,1768701041444,-1500.0,0.00014795,2]
[402533569,1768701041455,-1500.0,0.00014795,2]
[402533572,1768701041465,-1500.0,0.00014795,2]
[402533574,1768701041475,-245.28081658,0.00014844,2]
[402533576,1768701041485,-229.43,0.00014911,2]
[402533578,1768701041495,-886.46540214,0.00014916,2]
[402533580,1768701041507,-750.0,0.00015,2]
[402533582,1768701041517,-10000.0,0.00015057,2]
[402533584,1768701041527,-10000.0,0.00015114,2]
[402533586,1768701041538,-10000.0,0.00015114,2]
[402533588,1768701041549,-6972.5,0.00015114,2]
[402533590,1768701041559,-1041.66666667,0.00015181,2]
[402533592,1768701041570,-888.0,0.00015323,2]
[402533594,1768701041579,-361.1035164,0.00015323,2]
[402533596,1768701041589,-252.30160815,0.00015323,2]
[402533598,1768701041599,-1957.856,0.00015323,2]
[402533600,1768701041609,-162.95551483,0.00015323,2]
[402533602,1768701041619,-445.202766,0.00015323,2]
[402533604,1768701041629,-500.0,0.00015323,2]
[402533606,1768701041639,-500.0,0.00015323,2]
[402533608,1768701041649,-162.380719,0.00015323,2]
[402533610,1768701041659,-500.0,0.00015323,2]
[402533612,1768701041669,-151.62575808,0.00015323,2]
[402533614,1768701041678,-500.0,0.00015323,2]
[402533616,1768701041688,-162.380719,0.00015323,2]
[402533619,1768701041699,-2150.738,0.00015323,2]
[402533621,1768701041708,-500.0,0.00015323,2]
[402533623,1768701041718,-168.3888056,0.00015323,2]
[402533625,1768701041727,-500.0,0.00015323,2]
[402533627,1768701041737,-174.61919141,0.00015323,2]
[402533628,1768701041747,-500.0,0.00015323,2]
[402533629,1768701041757,-181.08010149,0.00015323,2]
[402533630,1768701041766,-500.0,0.00015323,2]
[402533632,1768701041776,-187.78006525,0.00015323,2]
[402533633,1768701041786,-500.0,0.00015323,2]
[402533634,1768701041800,-194.72792766,0.00015323,2]
[402533636,1768701041810,-500.0,0.00015323,2]
[402533638,1768701041819,-201.93286099,0.00015323,2]
[402533640,1768701041829,-500.0,0.00015323,2]
[402533642,1768701041839,-209.40437684,0.00015323,2]
[402533645,1768701041848,-500.0,0.00015323,2]
[402533647,1768701041858,-217.15233878,0.00015323,2]
[402533649,1768701041868,-500.0,0.00015323,2]
[402533651,1768701041877,-225.18697532,0.00015323,2]
[402533653,1768701041887,-500.0,0.00015323,2]
[402533655,1768701041897,-233.51889341,0.00015323,2]
[402533657,1768701041907,-500.0,0.00015323,2]
[402533659,1768701041917,-242.15909246,0.00015323,2]
[402533661,1768701041926,-251.11897888,0.00015323,2]
[402533663,1768701041936,-500.0,0.00015323,2]
[402533665,1768701041946,-260.4103811,0.00015323,2]
[402533667,1768701041956,-500.0,0.00015323,2]
[402533669,1768701041966,-270.0455652,0.00015323,2]
[402533671,1768701041977,-362.35994117,0.00015323,2]
[402533673,1768701041987,-280.03725112,0.00015323,2]
[402533675,1768701041997,-290.39862941,0.00015323,2]
[402533677,1768701042007,-301.1433787,0.00015323,2]
[402533679,1768701042016,-278.5083263,0.00015342,2]
[402533681,1768701042026,-3000.0,0.00015342,2]
[402533683,1768701042036,-335.06851345,0.00015342,2]
[402533685,1768701042047,-504.4621291,0.00015342,2]
[402533688,1768701042058,-2000.0,0.00015342,2]
[402533690,1768701042070,-2030.296672,0.00015378,2]
[402533692,1768701042080,-2105.41764886,0.00015433,2]
[402533694,1768701042090,-587.0,0.00015453,2]
[402533696,1768701042100,-2694.40116499,0.00015479,2]
[402533698,1768701042109,-2183.31810187,0.00015488,2]
[402533700,1768701042119,-2264.10087164,0.00015543,2]
[402533702,1768701042131,-155.0,0.0001558,2]
[402533704,1768701042140,-1531.0957453,0.00015598,2]
[402533706,1768701042150,-377.8688684,0.00015641,2]
[402533708,1768701042160,-258.11,0.00015739,2]
[402533710,1768701042170,-461.67526834,0.00015871,2]
[402533712,1768701042180,-168.3888056,0.00015871,2]
[402533714,1768701042189,-2230.315306,0.00015871,2]
[402533716,1768701042200,-2017.89090083,0.0001589,2]
[402533718,1768701042210,-162.39924888,0.0001598,2]
[402533720,1768701042220,-1000.0,0.00016,2]
[402533722,1768701042230,-153.0,0.00016052,2]
[402533724,1768701042243,-291.0,0.00016063,2]
[402533726,1768701042253,-755126.25159623,0.000161,2]
[402533728,1768701042263,-300.0,0.00016164,4]
[402533731,1768701042274,-206.419102,0.00016164,7]
[402533733,1768701042285,-7703.29277405,0.00016258,2]
[402533735,1768701042294,-236.14,0.0001626,7]
[402533737,1768701042305,-644.59437,0.0001626,7]
[402533739,1768701042316,-436.92628419,0.00016271,2]
[402533769,1768701042577,-1747.70513674,0.00016271,2]
[402533771,1768701042587,-3932.33655767,0.00016271,2]
[402533773,1768701042596,-6983.82972641,0.00016271,2]
[402533775,1768701042606,-446.02460619,0.0001628,2]
[402533777,1768701042625,-1784.09842475,0.0001628,2]
[402533779,1768701042645,-4014.2214557,0.0001628,2]
[402533781,1768701042654,-7129.25730532,0.0001628,2]
[402533783,1768701042664,-800.0,0.00016331,2]
[402533785,1768701042673,-2694.40116499,0.00016338,2]
[402533787,1768701042683,-12004.86351501,0.00016338,2]
[402533789,1768701042693,-10000.0,0.00016338,2]
[402533791,1768701042702,-291.0,0.00016344,2]
[402533793,1768701042711,-2929.12085027,0.00016355,7]
[402533795,1768701042721,-2919.18894857,0.00016355,7]
[402533797,1768701042731,-937.214787,0.00016355,7]
[402533800,1768701042750,-291.0,0.00016362,2]
[402533802,1768701042761,-181.3404899,0.00016362,2]
[402533804,1768701042771,-33066.996224,0.00016362,2]
[402533806,1768701042782,-8375.2392106,0.00016362,2]
[402533808,1768701042792,-166.0,0.00016366,2]
[402533810,1768701042802,-153.0,0.00016366,2]
[402533813,1768701042812,-348.0,0.00016366,2]
[402533815,1768701042822,-172.0,0.00016366,2]
[402533817,1768701042833,-348.0,0.00016366,2]
[402533819,1768701042843,-153.0,0.00016366,2]
[402533821,1768701042853,-169.24783424,0.00016366,2]
[402533823,1768701042863,-348.0,0.00016366,2]
[402533825,1768701042873,-166.0,0.00016366,2]
[402533827,1768701042883,-348.0,0.00016366,2]
[402533829,1768701042893,-348.0,0.00016366,2]
[402533831,1768701042903,-348.0,0.00016366,2]
[402533833,1768701042913,-151.0,0.00016366,2]
[402533835,1768701042923,-348.0,0.00016366,2]
[402533837,1768701042933,-151.0,0.00016366,2]
[402533839,1768701042943,-348.0,0.00016366,2]
[402533841,1768701042953,-151.0,0.00016366,2]
[402533843,1768701042963,-348.0,0.00016366,2]
[402533845,1768701042973,-348.0,0.00016366,2]
[402533848,1768701042983,-348.0,0.00016366,2]
[402533850,1768701042993,-271.06351077,0.00016366,2]
[402533852,1768701043002,-158.0,0.00016366,2]
[402533854,1768701043013,-348.0,0.00016366,2]
[402533856,1768701043024,-158.0,0.00016366,2]
[402533858,1768701043033,-348.0,0.00016366,2]
[402533860,1768701043044,-348.0,0.00016366,2]
[402533862,1768701043054,-158.0,0.00016366,2]
[402533864,1768701043064,-151.0,0.00016366,2]
[402533866,1768701043073,-348.0,0.00016366,2]
[402533868,1768701043083,-158.0,0.00016366,2]
[402533871,1768701043094,-151.0,0.00016366,2]
[402533874,1768701043104,-348.0,0.00016366,2]
[402533876,1768701043114,-166.82849008,0.00016366,2]
[402533879,1768701043125,-151.0,0.00016366,2]
[402533881,1768701043135,-151.0,0.00016366,2]
[402533883,1768701043144,-348.0,0.00016366,2]
[402533885,1768701043154,-158.0,0.00016366,2]
[402533887,1768701043164,-158.0,0.00016366,2]
[402533889,1768701043174,-348.0,0.00016366,2]
[402533891,1768701043184,-151.0,0.00016366,2]
[402533893,1768701043194,-348.0,0.00016366,2]
[402533895,1768701043204,-158.0,0.00016366,2]
[402533897,1768701043214,-151.0,0.00016366,2]
[402533900,1768701043224,-348.0,0.00016366,2]
[402533901,1768701043237,-151.0,0.00016366,2]
[402533903,1768701043247,-348.0,0.00016366,2]
[402533905,1768701043256,-151.0,0.00016366,2]
[402533908,1768701043267,-348.0,0.00016366,2]
[402533910,1768701043277,-151.0,0.00016366,2]
[402533912,1768701043287,-348.0,0.00016366,2]
[402533914,1768701043297,-151.0,0.00016366,2]
[402533916,1768701043306,-348.0,0.00016366,2]
[402533918,1768701043318,-151.0,0.00016366,2]
[402533920,1768701043328,-348.0,0.00016366,2]
[402533922,1768701043337,-151.0,0.00016366,2]
[402533924,1768701043347,-348.0,0.00016366,2]
[402533926,1768701043356,-151.41001683,0.00016366,2]
[402533928,1768701043365,-348.0,0.00016366,2]
[402533930,1768701043375,-151.0,0.00016366,2]
[402533932,1768701043384,-348.0,0.00016366,2]
[402533934,1768701043394,-348.0,0.00016366,2]
[402533936,1768701043404,-348.0,0.00016366,2]
[402533938,1768701043413,-153.0,0.00016366,2]
[402533940,1768701043422,-153.0,0.00016366,2]
[402533942,1768701043432,-153.0,0.00016366,2]
[402533944,1768701043441,-153.0,0.00016366,2]
[402533946,1768701043451,-153.0,0.00016366,2]
[402533948,1768701043460,-153.0,0.00016366,2]
[402533950,1768701043470,-348.0,0.00016366,2]
[402533952,1768701043479,-153.0,0.00016366,2]
[402533954,1768701043488,-348.0,0.00016366,2]
[402533956,1768701043498,-153.0,0.00016366,2]
[402533958,1768701043507,-153.0,0.00016366,2]
[402533960,1768701043517,-153.0,0.00016366,2]
[402533962,1768701043527,-153.0,0.00016366,2]
[402533964,1768701043537,-153.0,0.00016366,2]
[402533966,1768701043546,-153.0,0.00016366,2]
[402533969,1768701043560,-153.0,0.00016366,2]
[402533971,1768701043570,-153.0,0.00016366,2]
[402533973,1768701043580,-153.0,0.00016366,2]
[402533975,1768701043590,-348.0,0.00016366,2]
[402533977,1768701043601,-153.0,0.00016366,2]
[402533979,1768701043611,-348.0,0.00016366,2]
[402533981,1768701043621,-153.0,0.00016366,2]
[402533983,1768701043631,-348.0,0.00016366,2]
[402533985,1768701043641,-153.0,0.00016366,2]
[402533987,1768701043651,-348.0,0.00016366,2]
[402533990,1768701043662,-153.0,0.00016366,2]
[402533992,1768701043672,-348.0,0.00016366,2]
[402533994,1768701043682,-153.0,0.00016366,2]
[402533996,1768701043692,-348.0,0.00016366,2]
[402533998,1768701043702,-348.0,0.00016366,2]
[402534000,1768701043712,-153.0,0.00016366,2]
[402534002,1768701043722,-348.0,0.00016366,2]
[402534004,1768701043732,-153.0,0.00016366,2]
[402534006,1768701043742,-348.0,0.00016366,2]
[402534008,1768701043753,-153.0,0.00016366,2]
[402534010,1768701043771,-348.0,0.00016366,2]
[402534013,1768701043781,-153.0,0.00016366,2]
[402534015,1768701043791,-348.0,0.00016366,2]
[402534017,1768701043801,-153.0,0.00016366,2]
[402534020,1768701043811,-348.0,0.00016366,2]
[402534022,1768701043821,-153.0,0.00016366,2]
[402534024,1768701043830,-348.0,0.00016366,2]
[402534026,1768701043840,-153.0,0.00016366,2]
[402534028,1768701043849,-348.0,0.00016366,2]
[402534030,1768701043859,-153.0,0.00016366,2]
[402534032,1768701043868,-348.0,0.00016366,2]
[402534033,1768701043878,-153.0,0.00016366,2]
[402534034,1768701043887,-348.0,0.00016366,2]
[402534035,1768701043896,-153.0,0.00016366,2]
[402534036,1768701043906,-348.0,0.00016366,2]
[402534037,1768701043915,-348.0,0.00016366,2]
[402534038,1768701043925,-153.0,0.00016366,2]
[402534039,1768701043934,-348.0,0.00016366,2]
[402534040,1768701043943,-153.0,0.00016366,2]
[402534041,1768701043953,-348.0,0.00016366,2]
[402534042,1768701043963,-153.0,0.00016366,2]
[402534043,1768701043972,-348.0,0.00016366,2]
[402534044,1768701043981,-196.25083077,0.00016366,2]
[402534045,1768701043991,-348.0,0.00016366,2]
[402534046,1768701044000,-348.0,0.00016366,2]
[402534047,1768701044010,-168.0,0.00016366,2]
[402534048,1768701044019,-348.0,0.00016366,2]
[402534049,1768701044029,-168.0,0.00016366,2]
[402534050,1768701044038,-348.0,0.00016366,2]
[402534051,1768701044047,-168.86715509,0.00016366,2]
[402534052,1768701044057,-348.0,0.00016366,2]
[402534053,1768701044066,-348.0,0.00016366,2]